[Event "*** MasterClass Titled Tuesday Blitz"]
[Site "Chess.com"]
[Date "2017.07.04"]
[Round "3"]
[White "Elshan1985"]
[Black "dhanushbharadwaj"]
[Result "1-0"]
[WhiteElo "2645"]
[BlackElo "2339"]
[TimeControl "180+2"]
[EndTime "13:34:17 PDT"]
[Termination "Elshan1985 won by resignation"]

1. d4 {[%clk 0:03:01.9]} 1... g6 {[%clk 0:03:00.7]} 2. h4 {[%clk 0:03:01.6]}
2... Bg7 {[%clk 0:03:01.1]} 3. h5 {[%clk 0:03:02.1]} 3... d6 {[%clk 0:03:01.4]}
4. e4 {[%clk 0:03:02.4]} 4... c5 {[%clk 0:02:58.4]} 5. dxc5 {[%clk 0:03:00.8]}
5... Qa5+ {[%clk 0:02:53]} 6. Bd2 {[%clk 0:03:01.7]} 6... Qxc5 {[%clk
0:02:52.9]} 7. Bc3 {[%clk 0:03:03.2]} 7... Bxc3+ {[%clk 0:02:50.3]} 8. Nxc3
{[%clk 0:03:05.1]} 8... Nf6 {[%clk 0:02:50.4]} 9. hxg6 {[%clk 0:02:57.8]} 9...
fxg6 {[%clk 0:02:52.3]} 10. Nf3 {[%clk 0:02:58.9]} 10... Nc6 {[%clk 0:02:52.7]}
11. Qd2 {[%clk 0:02:54.5]} 11... Bg4 {[%clk 0:02:51.7]} 12. Ng5 {[%clk
0:02:49.3]} 12... h6 {[%clk 0:02:45]} 13. f3 {[%clk 0:02:41.4]} 13... Bd7 {[%clk
0:02:42.7]} 14. O-O-O {[%clk 0:02:34.3]} 14... Ne5 {[%clk 0:02:34.6]} 15. f4
{[%clk 0:02:25]} 15... Nc4 {[%clk 0:02:32.4]} 16. Bxc4 {[%clk 0:02:24.9]} 16...
Qxc4 {[%clk 0:02:34.3]} 17. e5 {[%clk 0:02:23.9]} 17... O-O-O {[%clk 0:02:24.7]}
18. exf6 {[%clk 0:02:21.7]} 18... hxg5 {[%clk 0:02:25.2]} 19. fxe7 {[%clk
0:02:22.7]} 19... Rde8 {[%clk 0:02:26.3]} 20. Rxh8 {[%clk 0:02:15.2]} 20... Rxh8
{[%clk 0:02:28.2]} 21. fxg5 {[%clk 0:02:13.9]} 21... Re8 {[%clk 0:02:28.5]} 22.
Qxd6 {[%clk 0:02:14.3]} 22... Qc6 {[%clk 0:02:28.3]} 23. Qf6 {[%clk 0:02:10.8]}
23... a6 {[%clk 0:02:17.6]} 24. Nd5 {[%clk 0:02:08.4]} 24... Bf5 {[%clk
0:02:12.5]} 25. Rd2 {[%clk 0:01:58.3]} 25... Kb8 {[%clk 0:02:03.1]} 26. Qe5+
{[%clk 0:01:54.4]} 26... Ka7 {[%clk 0:01:58.8]} 27. Nf6 {[%clk 0:01:54.6]} 27...
Rc8 {[%clk 0:01:55.1]} 28. Qe3+ {[%clk 0:01:45.6]} 28... b6 {[%clk 0:01:54.2]}
29. e8=Q {[%clk 0:01:43.7]} 1-0

[Event "*** MasterClass Titled Tuesday Blitz"]
[Site "Chess.com"]
[Date "2017.07.04"]
[Round "3"]
[White "IljaZaragatski"]
[Black "JaimeSantosLatasa"]
[Result "1-0"]
[WhiteElo "2414"]
[BlackElo "2488"]
[TimeControl "180+2"]
[EndTime "13:34:30 PDT"]
[Termination "IljaZaragatski won by resignation"]

1. Nf3 {[%clk 0:03:01.9]} 1... d6 {[%clk 0:02:44]} 2. d4 {[%clk 0:03:00.8]} 2...
g6 {[%clk 0:02:45.4]} 3. e4 {[%clk 0:03:01.2]} 3... Bg7 {[%clk 0:02:46.6]} 4.
Be2 {[%clk 0:03:02.8]} 4... a6 {[%clk 0:02:44.9]} 5. c4 {[%clk 0:03:01.3]} 5...
Bg4 {[%clk 0:02:40.9]} 6. Nc3 {[%clk 0:02:59.8]} 6... Bxf3 {[%clk 0:02:38.6]} 7.
Bxf3 {[%clk 0:03:00.2]} 7... Nc6 {[%clk 0:02:40.2]} 8. Be3 {[%clk 0:02:39.6]}
8... e5 {[%clk 0:02:37.1]} 9. d5 {[%clk 0:02:40.3]} 9... Nd4 {[%clk 0:02:37]}
10. Bg4 {[%clk 0:02:32.7]} 10... h5 {[%clk 0:02:26.1]} 11. Bh3 {[%clk
0:02:27.9]} 11... c5 {[%clk 0:02:25.3]} 12. dxc6 {[%clk 0:02:21.9]} 12... bxc6
{[%clk 0:02:24.4]} 13. O-O {[%clk 0:02:06]} 13... c5 {[%clk 0:02:10.6]} 14. Qa4+
{[%clk 0:02:03.9]} 14... Kf8 {[%clk 0:02:10.6]} 15. f4 {[%clk 0:02:03.1]} 15...
exf4 {[%clk 0:02:05.8]} 16. Bxf4 {[%clk 0:02:02]} 16... Be5 {[%clk 0:02:05.9]}
17. Kh1 {[%clk 0:01:42.7]} 17... Kg7 {[%clk 0:02:05]} 18. Nd5 {[%clk 0:01:42.7]}
18... Bxf4 {[%clk 0:01:57.7]} 19. Rxf4 {[%clk 0:01:42.9]} 19... Ne7 {[%clk
0:01:58]} 20. Raf1 {[%clk 0:01:42.5]} 20... Rf8 {[%clk 0:01:57.2]} 21. Nf6
{[%clk 0:01:23.1]} 21... Ne6 {[%clk 0:01:57.1]} 22. Bxe6 {[%clk 0:01:08.9]}
22... fxe6 {[%clk 0:01:59]} 23. Nxh5+ {[%clk 0:01:09.9]} 23... gxh5 {[%clk
0:01:56.8]} 24. Rxf8 {[%clk 0:01:11.8]} 1-0

[Event "*** MasterClass Titled Tuesday Blitz"]
[Site "Chess.com"]
[Date "2017.07.04"]
[Round "3"]
[White "TeukkaSalama"]
[Black "LonesomeGeorge1"]
[Result "0-1"]
[WhiteElo "2066"]
[BlackElo "2270"]
[TimeControl "180+2"]
[EndTime "13:35:01 PDT"]
[Termination "LonesomeGeorge1 won by resignation"]

1. d4 {[%clk 0:03:01.9]} 1... Nf6 {[%clk 0:03:00.4]} 2. Bf4 {[%clk 0:03:01.9]}
2... b6 {[%clk 0:02:59]} 3. Nf3 {[%clk 0:03:01.3]} 3... Bb7 {[%clk 0:03:00.2]}
4. e3 {[%clk 0:03:02.3]} 4... g6 {[%clk 0:03:01.2]} 5. Be2 {[%clk 0:03:01.4]}
5... Bg7 {[%clk 0:03:02.7]} 6. O-O {[%clk 0:03:01.4]} 6... O-O {[%clk
0:03:04.3]} 7. h3 {[%clk 0:03:01.7]} 7... d6 {[%clk 0:03:04.3]} 8. a4 {[%clk
0:02:59.3]} 8... a6 {[%clk 0:03:01.5]} 9. Nbd2 {[%clk 0:02:56.4]} 9... c5 {[%clk
0:02:40.4]} 10. c3 {[%clk 0:02:56.8]} 10... Nbd7 {[%clk 0:02:38.2]} 11. Bh2
{[%clk 0:02:56.5]} 11... Rc8 {[%clk 0:02:33.7]} 12. Re1 {[%clk 0:02:53.4]} 12...
Rc7 {[%clk 0:02:28.1]} 13. Bd3 {[%clk 0:02:36.3]} 13... Qa8 {[%clk 0:02:26.7]}
14. e4 {[%clk 0:02:28.3]} 14... cxd4 {[%clk 0:02:25]} 15. Nxd4 {[%clk 0:02:24]}
15... Nc5 {[%clk 0:02:16.1]} 16. Qe2 {[%clk 0:02:14.6]} 16... Nxd3 {[%clk
0:02:07.2]} 17. Qxd3 {[%clk 0:02:16.5]} 17... Nd7 {[%clk 0:02:08.8]} 18. b4
{[%clk 0:02:01.4]} 18... Rfc8 {[%clk 0:02:07.8]} 19. Rac1 {[%clk 0:02:01.1]}
19... Ne5 {[%clk 0:02:03.5]} 20. Qe3 {[%clk 0:01:26.8]} 20... Nc4 {[%clk
0:02:00.3]} 21. Nxc4 {[%clk 0:01:26.9]} 21... Rxc4 {[%clk 0:02:02.2]} 22. Bf4
{[%clk 0:00:45.8]} 22... e5 {[%clk 0:01:49.8]} 0-1

[Event "*** MasterClass Titled Tuesday Blitz"]
[Site "Chess.com"]
[Date "2017.07.04"]
[Round "3"]
[White "FairChess_on_YouTube"]
[Black "Rodalquilar"]
[Result "1-0"]
[WhiteElo "2703"]
[BlackElo "2541"]
[TimeControl "180+2"]
[EndTime "13:35:10 PDT"]
[Termination "FairChess_on_YouTube won by resignation"]

1. d4 {[%clk 0:03:01.9]} 1... Nf6 {[%clk 0:03:00.7]} 2. Bg5 {[%clk 0:03:02.1]}
2... d5 {[%clk 0:03:00.4]} 3. Nd2 {[%clk 0:03:02.4]} 3... c5 {[%clk 0:02:39.8]}
4. dxc5 {[%clk 0:03:02.3]} 4... e5 {[%clk 0:02:33.1]} 5. b4 {[%clk 0:02:56.9]}
5... b6 {[%clk 0:02:13.6]} 6. e4 {[%clk 0:02:51.9]} 6... bxc5 {[%clk 0:01:59.8]}
7. Ngf3 {[%clk 0:02:51.2]} 7... Nc6 {[%clk 0:01:41.5]} 8. Bb5 {[%clk 0:02:45.8]}
8... Qb6 {[%clk 0:01:42.6]} 9. c4 {[%clk 0:02:39]} 9... dxc4 {[%clk 0:01:09.6]}
10. Qa4 {[%clk 0:02:39.3]} 10... Bd7 {[%clk 0:01:11]} 11. Nxc4 {[%clk
0:02:40.2]} 11... Qc7 {[%clk 0:01:11.1]} 12. Rd1 {[%clk 0:02:40.7]} 12... Rc8
{[%clk 0:00:48.1]} 13. O-O {[%clk 0:02:38.1]} 13... a6 {[%clk 0:00:45.2]} 14.
Bxa6 {[%clk 0:02:03.1]} 14... Ra8 {[%clk 0:00:45.1]} 15. b5 {[%clk 0:02:01.3]}
15... Nb4 {[%clk 0:00:44.5]} 16. Qb3 {[%clk 0:01:50.8]} 16... Be6 {[%clk
0:00:33]} 17. Nfxe5 {[%clk 0:01:47]} 17... Nxa6 {[%clk 0:00:21.7]} 18. bxa6
{[%clk 0:01:46.9]} 18... Nxe4 {[%clk 0:00:16.1]} 19. Qb5+ {[%clk 0:01:46.5]} 1-0

[Event "*** MasterClass Titled Tuesday Blitz"]
[Site "Chess.com"]
[Date "2017.07.04"]
[Round "3"]
[White "blitzcopter"]
[Black "CraiggoryC"]
[Result "0-1"]
[WhiteElo "2028"]
[BlackElo "2062"]
[TimeControl "180+2"]
[EndTime "13:35:26 PDT"]
[Termination "CraiggoryC won on time"]

1. e4 {[%clk 0:02:58.6]} 1... e6 {[%clk 0:03:00.2]} 2. d4 {[%clk 0:02:59.3]}
2... d5 {[%clk 0:03:01.7]} 3. Nd2 {[%clk 0:02:57.9]} 3... Be7 {[%clk 0:03:01.8]}
4. Ngf3 {[%clk 0:02:53.3]} 4... Nf6 {[%clk 0:03:01.9]} 5. e5 {[%clk 0:02:52.5]}
5... Nfd7 {[%clk 0:03:03.3]} 6. c3 {[%clk 0:02:53]} 6... c5 {[%clk 0:03:04.8]}
7. Bd3 {[%clk 0:02:11.4]} 7... Nc6 {[%clk 0:03:06.1]} 8. O-O {[%clk 0:01:52.8]}
8... a5 {[%clk 0:03:07.3]} 9. Re1 {[%clk 0:01:42.1]} 9... cxd4 {[%clk
0:03:07.7]} 10. cxd4 {[%clk 0:01:34]} 10... g5 {[%clk 0:03:03.8]} 11. h3 {[%clk
0:01:30.3]} 11... h5 {[%clk 0:03:03.9]} 12. Qa4 {[%clk 0:01:18.2]} 12... Qb6
{[%clk 0:02:34.5]} 13. Nb3 {[%clk 0:01:12.5]} 13... g4 {[%clk 0:02:32.2]} 14.
hxg4 {[%clk 0:01:08.9]} 14... hxg4 {[%clk 0:02:32.5]} 15. Nh2 {[%clk 0:01:10]}
15... Qc7 {[%clk 0:02:28]} 16. Nxg4 {[%clk 0:00:38.6]} 16... Nb6 {[%clk
0:02:27.9]} 17. Qb5 {[%clk 0:00:26.5]} 17... a4 {[%clk 0:02:28]} 18. Nc5 {[%clk
0:00:12.2]} 18... Ra5 {[%clk 0:02:21.7]} 19. Qxa5 {[%clk 0:00:07]} 19... Nxa5
{[%clk 0:02:21.1]} 20. Bd2 {[%clk 0:00:02.8]} 20... Nac4 {[%clk 0:01:50]} 21.
Bc3 {[%clk 0:00:02.5]} 21... Rg8 {[%clk 0:01:46.7]} 0-1

[Event "*** MasterClass Titled Tuesday Blitz"]
[Site "Chess.com"]
[Date "2017.07.04"]
[Round "3"]
[White "Alexander_Donchenko"]
[Black "scrapnel"]
[Result "1-0"]
[WhiteElo "2581"]
[BlackElo "2551"]
[TimeControl "180+2"]
[EndTime "13:35:44 PDT"]
[Termination "Alexander_Donchenko won by resignation"]

1. d4 {[%clk 0:03:01.9]} 1... Nf6 {[%clk 0:03:00.2]} 2. c4 {[%clk 0:03:03.2]}
2... e6 {[%clk 0:03:00.8]} 3. g3 {[%clk 0:03:04.2]} 3... d5 {[%clk 0:03:01]} 4.
Bg2 {[%clk 0:03:05.6]} 4... Bb4+ {[%clk 0:03:00.6]} 5. Nd2 {[%clk 0:03:06.9]}
5... O-O {[%clk 0:02:57.5]} 6. Nf3 {[%clk 0:03:07.9]} 6... b6 {[%clk 0:02:57.7]}
7. O-O {[%clk 0:03:07.4]} 7... Bb7 {[%clk 0:02:58.5]} 8. Ne5 {[%clk 0:03:08.5]}
8... Be7 {[%clk 0:02:51.4]} 9. b3 {[%clk 0:03:08.8]} 9... c5 {[%clk 0:02:51.1]}
10. Bb2 {[%clk 0:03:08.6]} 10... Qc7 {[%clk 0:02:49.8]} 11. Rc1 {[%clk
0:03:08.1]} 11... dxc4 {[%clk 0:02:46.1]} 12. Bxb7 {[%clk 0:03:04.8]} 12... Qxb7
{[%clk 0:02:46]} 13. Ndxc4 {[%clk 0:03:05.7]} 13... Rd8 {[%clk 0:02:45]} 14. Qc2
{[%clk 0:02:59.9]} 14... cxd4 {[%clk 0:02:38.8]} 15. Rfd1 {[%clk 0:03:01.5]}
15... Bc5 {[%clk 0:02:29.7]} 16. a3 {[%clk 0:02:59]} 16... a5 {[%clk 0:02:29.5]}
17. e3 {[%clk 0:02:54.1]} 17... Nc6 {[%clk 0:02:24.8]} 18. Nxc6 {[%clk
0:02:52.7]} 18... Qxc6 {[%clk 0:02:24.6]} 19. Ne5 {[%clk 0:02:52.6]} 19... Qd5
{[%clk 0:02:18.4]} 20. Bxd4 {[%clk 0:02:47.6]} 20... Bxd4 {[%clk 0:02:15.3]} 21.
Nc6 {[%clk 0:02:47.3]} 21... Re8 {[%clk 0:02:06.6]} 22. Rxd4 {[%clk 0:02:47.5]}
22... Qh5 {[%clk 0:02:01.3]} 23. Rh4 {[%clk 0:02:35.7]} 23... Qg5 {[%clk
0:01:58.2]} 24. Qc3 {[%clk 0:02:22.6]} 24... Nd5 {[%clk 0:01:54.4]} 25. Qd3
{[%clk 0:02:22.5]} 25... h6 {[%clk 0:01:54.5]} 26. Rhc4 {[%clk 0:02:13.9]} 26...
b5 {[%clk 0:01:52.7]} 27. Rc5 {[%clk 0:02:14.1]} 27... b4 {[%clk 0:01:49.1]} 28.
a4 {[%clk 0:02:12]} 28... Qf6 {[%clk 0:01:46.4]} 29. Nxa5 {[%clk 0:02:02.4]}
29... Qb2 {[%clk 0:01:40.4]} 30. Qc2 {[%clk 0:01:57.4]} 30... Qf6 {[%clk
0:01:32.5]} 31. Nc6 {[%clk 0:01:56.7]} 31... Qf3 {[%clk 0:01:18.8]} 32. Rc4
{[%clk 0:01:53.6]} 32... Rac8 {[%clk 0:01:13.5]} 33. Qd1 {[%clk 0:01:51.6]}
33... Qf6 {[%clk 0:01:06.6]} 34. Nxb4 {[%clk 0:01:42.8]} 34... Rxc4 {[%clk
0:01:05.6]} 35. Rxc4 {[%clk 0:01:43.5]} 35... Rd8 {[%clk 0:01:04.1]} 36. Rd4
{[%clk 0:01:41.3]} 1-0

[Event "*** MasterClass Titled Tuesday Blitz"]
[Site "Chess.com"]
[Date "2017.07.04"]
[Round "3"]
[White "ulises2013"]
[Black "Blitzstream"]
[Result "0-1"]
[WhiteElo "2295"]
[BlackElo "2449"]
[TimeControl "180+2"]
[EndTime "13:35:57 PDT"]
[Termination "Blitzstream won by resignation"]

1. e4 {[%clk 0:03:01.9]} 1... e5 {[%clk 0:03:00.3]} 2. Nf3 {[%clk 0:02:57.3]}
2... Nf6 {[%clk 0:03:01.2]} 3. Nxe5 {[%clk 0:02:42.8]} 3... d5 {[%clk
0:03:01.8]} 4. exd5 {[%clk 0:02:37]} 4... Qxd5 {[%clk 0:03:01.9]} 5. Nf3 {[%clk
0:02:32.7]} 5... Bg4 {[%clk 0:02:53.6]} 6. Be2 {[%clk 0:02:31.5]} 6... Bd6
{[%clk 0:02:53.8]} 7. O-O {[%clk 0:02:28.6]} 7... Nc6 {[%clk 0:02:51.8]} 8. h3
{[%clk 0:02:23.5]} 8... h5 {[%clk 0:02:48.9]} 9. Nc3 {[%clk 0:02:21.3]} 9... Qf5
{[%clk 0:02:49.3]} 10. d3 {[%clk 0:01:50.3]} 10... O-O-O {[%clk 0:02:42.5]} 11.
Be3 {[%clk 0:01:34.5]} 11... Bxh3 {[%clk 0:02:34.9]} 12. gxh3 {[%clk 0:01:26.3]}
12... Qxh3 {[%clk 0:02:35.3]} 13. Nb5 {[%clk 0:01:07.4]} 13... Qg4+ {[%clk
0:02:19.5]} 14. Kh1 {[%clk 0:01:05.2]} 14... Qh3+ {[%clk 0:02:20.4]} 15. Kg1
{[%clk 0:01:05.3]} 15... Nd5 {[%clk 0:01:02.6]} 16. Nxd6+ {[%clk 0:00:44]} 16...
Rxd6 {[%clk 0:01:04.5]} 17. Nh2 {[%clk 0:00:35.6]} 17... Rg6+ {[%clk 0:01:02.8]}
0-1

[Event "*** MasterClass Titled Tuesday Blitz"]
[Site "Chess.com"]
[Date "2017.07.04"]
[Round "3"]
[White "AdrianaNikolova"]
[Black "Federtiu"]
[Result "1-0"]
[WhiteElo "2326"]
[BlackElo "2440"]
[TimeControl "180+2"]
[EndTime "13:36:10 PDT"]
[Termination "AdrianaNikolova won by resignation"]

1. e4 {[%clk 0:03:01.9]} 1... g6 {[%clk 0:03:01.9]} 2. d4 {[%clk 0:03:02.2]}
2... Bg7 {[%clk 0:03:02.5]} 3. Nc3 {[%clk 0:03:03.7]} 3... a6 {[%clk 0:03:02.9]}
4. a4 {[%clk 0:03:03.3]} 4... d6 {[%clk 0:03:02.6]} 5. Be3 {[%clk 0:03:03.6]}
5... Nc6 {[%clk 0:02:57.6]} 6. h3 {[%clk 0:02:55.6]} 6... e5 {[%clk 0:02:33.4]}
7. Nge2 {[%clk 0:02:55.2]} 7... Nf6 {[%clk 0:02:25.7]} 8. g4 {[%clk 0:02:50.9]}
8... exd4 {[%clk 0:02:26.1]} 9. Nxd4 {[%clk 0:02:52.8]} 9... O-O {[%clk
0:02:24.4]} 10. Bg2 {[%clk 0:02:52.2]} 10... d5 {[%clk 0:02:01.3]} 11. exd5
{[%clk 0:02:45.6]} 11... Nxd4 {[%clk 0:01:51.5]} 12. Bxd4 {[%clk 0:02:47.5]}
12... Re8+ {[%clk 0:01:52.1]} 13. Be3 {[%clk 0:02:48.5]} 13... Bh6 {[%clk
0:01:32.8]} 14. O-O {[%clk 0:02:45.7]} 14... Bxe3 {[%clk 0:01:24.5]} 15. fxe3
{[%clk 0:02:47.6]} 15... h5 {[%clk 0:01:15.5]} 16. Qd4 {[%clk 0:02:27.9]} 16...
Nd7 {[%clk 0:00:52.3]} 17. gxh5 {[%clk 0:02:22.2]} 17... Qg5 {[%clk 0:00:39.7]}
18. Ne4 {[%clk 0:01:59]} 18... Qxh5 {[%clk 0:00:19.8]} 19. Nf6+ {[%clk
0:01:55.2]} 19... Nxf6 {[%clk 0:00:20.3]} 20. Qxf6 {[%clk 0:01:57.1]} 20... Qh7
{[%clk 0:00:18.9]} 21. e4 {[%clk 0:01:56.6]} 21... Qg7 {[%clk 0:00:19.6]} 22.
Qf4 {[%clk 0:01:53.9]} 22... Qe5 {[%clk 0:00:16.1]} 23. Qxf7+ {[%clk 0:01:53]}
23... Kh8 {[%clk 0:00:16.9]} 24. Qxg6 {[%clk 0:01:46.2]} 24... Bd7 {[%clk
0:00:13.2]} 25. Rf7 {[%clk 0:01:39]} 1-0

[Event "*** MasterClass Titled Tuesday Blitz"]
[Site "Chess.com"]
[Date "2017.07.04"]
[Round "3"]
[White "evgenyermolaev"]
[Black "stuffings101"]
[Result "1-0"]
[WhiteElo "2309"]
[BlackElo "2184"]
[TimeControl "180+2"]
[EndTime "13:36:16 PDT"]
[Termination "evgenyermolaev won on time"]

1. e4 {[%clk 0:02:58.3]} 1... d6 {[%clk 0:02:57]} 2. d4 {[%clk 0:02:58.8]} 2...
Nf6 {[%clk 0:02:58.3]} 3. Nc3 {[%clk 0:02:59.9]} 3... g6 {[%clk 0:02:59.5]} 4.
Be3 {[%clk 0:03:00.7]} 4... a6 {[%clk 0:02:59.1]} 5. f3 {[%clk 0:02:59.8]} 5...
b5 {[%clk 0:02:59.8]} 6. Qd2 {[%clk 0:03:00.2]} 6... Nbd7 {[%clk 0:03:01]} 7. g4
{[%clk 0:03:00.6]} 7... h6 {[%clk 0:03:00.7]} 8. Nge2 {[%clk 0:02:57.4]} 8...
Nb6 {[%clk 0:02:58.8]} 9. Ng3 {[%clk 0:02:58]} 9... c6 {[%clk 0:02:54.3]} 10. h4
{[%clk 0:02:53.6]} 10... Nfd7 {[%clk 0:02:50.7]} 11. f4 {[%clk 0:02:41.7]} 11...
Nf6 {[%clk 0:02:49.1]} 12. g5 {[%clk 0:02:41.3]} 12... Ng4 {[%clk 0:02:48.5]}
13. Bg1 {[%clk 0:02:39.4]} 13... h5 {[%clk 0:02:48.6]} 14. f5 {[%clk 0:02:35]}
14... Qc7 {[%clk 0:02:38.8]} 15. Qf4 {[%clk 0:02:27.3]} 15... Bg7 {[%clk
0:02:36.4]} 16. Bd3 {[%clk 0:02:10.9]} 16... e5 {[%clk 0:02:02.5]} 17. fxe6
{[%clk 0:01:59.3]} 17... Bxe6 {[%clk 0:02:00]} 18. O-O-O {[%clk 0:01:57.2]}
18... O-O {[%clk 0:01:54]} 19. Nf5 {[%clk 0:01:43.4]} 19... b4 {[%clk
0:01:28.7]} 20. Ne2 {[%clk 0:01:36.9]} 20... gxf5 {[%clk 0:00:58.6]} 21. exf5
{[%clk 0:01:37]} 21... Bd5 {[%clk 0:00:53.5]} 22. f6 {[%clk 0:01:36.4]} 22...
Qd7 {[%clk 0:00:07.5]} 23. Ng3 {[%clk 0:01:21]} 23... Bxh1 {[%clk 0:00:03.2]}
24. Nf5 {[%clk 0:01:21.8]} 1-0

[Event "*** MasterClass Titled Tuesday Blitz"]
[Site "Chess.com"]
[Date "2017.07.04"]
[Round "3"]
[White "spirals5"]
[Black "Me_ch_an"]
[Result "1-0"]
[WhiteElo "2370"]
[BlackElo "2262"]
[TimeControl "180+2"]
[EndTime "13:36:17 PDT"]
[Termination "spirals5 won on time"]

1. e4 {[%clk 0:03:01.9]} 1... c5 {[%clk 0:03:00.8]} 2. Nc3 {[%clk 0:03:01.3]}
2... a6 {[%clk 0:03:01.2]} 3. g3 {[%clk 0:03:02.1]} 3... b5 {[%clk 0:03:02.2]}
4. a3 {[%clk 0:03:01.5]} 4... Bb7 {[%clk 0:03:03.3]} 5. Bg2 {[%clk 0:03:02]}
5... e6 {[%clk 0:03:04.5]} 6. Nge2 {[%clk 0:03:02.4]} 6... Nf6 {[%clk
0:03:02.8]} 7. d3 {[%clk 0:03:02.8]} 7... d5 {[%clk 0:03:03.2]} 8. exd5 {[%clk
0:03:03.2]} 8... Nxd5 {[%clk 0:03:03.5]} 9. O-O {[%clk 0:03:01.5]} 9... Nd7
{[%clk 0:03:03.6]} 10. Nxd5 {[%clk 0:02:56.8]} 10... Bxd5 {[%clk 0:03:02.3]} 11.
Bxd5 {[%clk 0:02:57.2]} 11... exd5 {[%clk 0:03:03.4]} 12. Nf4 {[%clk 0:02:57.7]}
12... Nf6 {[%clk 0:03:04]} 13. Re1+ {[%clk 0:02:58.5]} 13... Be7 {[%clk
0:03:05.1]} 14. Qe2 {[%clk 0:02:59.3]} 14... Ra7 {[%clk 0:03:05]} 15. h4 {[%clk
0:02:52.6]} 15... O-O {[%clk 0:03:05.4]} 16. Bd2 {[%clk 0:02:52.5]} 16... Bd6
{[%clk 0:02:59.6]} 17. Qf3 {[%clk 0:02:52]} 17... Bc7 {[%clk 0:02:04.1]} 18. Re2
{[%clk 0:02:49.2]} 18... Bb8 {[%clk 0:01:22.7]} 19. Rae1 {[%clk 0:02:47.2]}
19... Rd7 {[%clk 0:01:22.7]} 20. Ng2 {[%clk 0:02:32]} 20... h6 {[%clk
0:01:18.3]} 21. Ne3 {[%clk 0:02:28.2]} 21... g6 {[%clk 0:00:40.4]} 22. Ng2
{[%clk 0:02:19.9]} 22... Kh7 {[%clk 0:00:40.3]} 23. Bf4 {[%clk 0:02:02.8]} 23...
Bxf4 {[%clk 0:00:16]} 24. Nxf4 {[%clk 0:02:02.5]} 24... Kg7 {[%clk 0:00:15.6]}
25. Re5 {[%clk 0:01:54.4]} 25... d4 {[%clk 0:00:15.1]} 26. Qc6 {[%clk
0:01:43.4]} 26... Rd6 {[%clk 0:00:09.6]} 27. Qb7 {[%clk 0:01:41.6]} 27... Nd7
{[%clk 0:00:06.1]} 28. Re7 {[%clk 0:01:38.3]} 28... Qb6 {[%clk 0:00:03.2]} 29.
Rxd7 {[%clk 0:01:30.7]} 1-0

[Event "*** MasterClass Titled Tuesday Blitz"]
[Site "Chess.com"]
[Date "2017.07.04"]
[Round "3"]
[White "MarshKnight"]
[Black "Godzillator"]
[Result "0-1"]
[WhiteElo "2152"]
[BlackElo "2267"]
[TimeControl "180+2"]
[EndTime "13:36:34 PDT"]
[Termination "Godzillator won by resignation"]

1. e4 {[%clk 0:03:01.5]} 1... c6 {[%clk 0:03:01]} 2. d4 {[%clk 0:03:02.2]} 2...
d5 {[%clk 0:03:02.6]} 3. Nd2 {[%clk 0:03:03.7]} 3... dxe4 {[%clk 0:03:03.7]} 4.
Nxe4 {[%clk 0:03:05.3]} 4... Nd7 {[%clk 0:03:05.2]} 5. Nf3 {[%clk 0:03:04.1]}
5... Ngf6 {[%clk 0:03:06.4]} 6. Nxf6+ {[%clk 0:03:04.7]} 6... Nxf6 {[%clk
0:03:07.1]} 7. Bd3 {[%clk 0:02:59.1]} 7... Bg4 {[%clk 0:03:07.6]} 8. Be3 {[%clk
0:02:55.6]} 8... e6 {[%clk 0:03:06.1]} 9. c3 {[%clk 0:02:49.6]} 9... Bd6 {[%clk
0:03:06.8]} 10. h3 {[%clk 0:02:48.9]} 10... Bh5 {[%clk 0:03:07.2]} 11. Qb3
{[%clk 0:02:44.6]} 11... Bxf3 {[%clk 0:02:59.7]} 12. gxf3 {[%clk 0:02:45.4]}
12... Qc7 {[%clk 0:03:00.7]} 13. Rg1 {[%clk 0:02:43.7]} 13... g6 {[%clk
0:03:01.5]} 14. Bg5 {[%clk 0:02:27.2]} 14... Nd5 {[%clk 0:03:01.8]} 15. Be4
{[%clk 0:02:03.1]} 15... Bf4 {[%clk 0:02:56]} 16. Bxd5 {[%clk 0:01:57]} 16...
exd5 {[%clk 0:02:55.7]} 17. Bxf4 {[%clk 0:01:08.1]} 17... Qxf4 {[%clk
0:02:56.2]} 18. Qxb7 {[%clk 0:00:51]} 18... O-O {[%clk 0:02:56.1]} 19. Qxc6
{[%clk 0:00:44.5]} 19... Rfe8+ {[%clk 0:02:56.3]} 20. Kf1 {[%clk 0:00:45.9]}
20... Qxf3 {[%clk 0:02:53.5]} 21. Rg3 {[%clk 0:00:40.6]} 21... Qh1+ {[%clk
0:02:50.7]} 22. Rg1 {[%clk 0:00:37.5]} 22... Qxh3+ {[%clk 0:02:51.4]} 23. Rg2
{[%clk 0:00:38.5]} 23... Rad8 {[%clk 0:02:27.9]} 24. Kg1 {[%clk 0:00:37]} 24...
Re4 {[%clk 0:02:24.6]} 25. Rg3 {[%clk 0:00:31.8]} 25... Qh5 {[%clk 0:02:14.4]}
26. Qc7 {[%clk 0:00:19.7]} 26... Rde8 {[%clk 0:02:13.5]} 27. Kg2 {[%clk
0:00:18.9]} 27... Rh4 {[%clk 0:02:11.8]} 28. Re3 {[%clk 0:00:18]} 28... Rg4+
{[%clk 0:02:04]} 29. Rg3 {[%clk 0:00:17.9]} 29... Ree4 {[%clk 0:02:01.3]} 30.
Rh1 {[%clk 0:00:17.9]} 30... Rxg3+ {[%clk 0:01:58.6]} 31. Qxg3 {[%clk 0:00:18]}
31... Qf5 {[%clk 0:01:58.5]} 32. Rh4 {[%clk 0:00:17.3]} 32... Re2 {[%clk
0:01:54]} 33. Qb8+ {[%clk 0:00:15.8]} 33... Kg7 {[%clk 0:01:54.3]} 34. Rf4
{[%clk 0:00:17.2]} 34... Qg5+ {[%clk 0:01:48.6]} 35. Kf1 {[%clk 0:00:17.5]}
35... Re7 {[%clk 0:01:41.7]} 36. Rf3 {[%clk 0:00:16.8]} 36... Qh5 {[%clk
0:01:39.9]} 37. Qg3 {[%clk 0:00:15.9]} 37... Qh1+ {[%clk 0:01:37.7]} 0-1